fUSD/lending_fUSD_20260224
["ID","MTS","AMOUNT","RATE_DAILY","PERIOD"]
[406600154,1771966546186,-1802.5088328,0.00049999,120]
[406600155,1771966546236,-500.0,0.00049999,120]
[406600156,1771966546283,-500.0,0.00049999,120]
[406600157,1771966546329,-1802.5088328,0.00049999,120]
[406600158,1771966546374,-638.52479607,0.00049999,120]
[406600159,1771966546418,-1802.5088328,0.00049999,120]
[406600160,1771966546463,-500.0,0.00049999,120]
[406600161,1771966546513,-500.0,0.00049999,120]
[406600162,1771966546560,-500.0,0.00049999,120]
[406600163,1771966546608,-1802.5088328,0.00049999,120]
[406600164,1771966546655,-1802.5088328,0.00049999,120]
[406600165,1771966546703,-505.42534117,0.00049999,120]
[406600166,1771966546751,-1802.5088328,0.00049999,120]
[406600167,1771966546800,-1802.5088328,0.00049999,120]
[406600168,1771966546848,-500.0,0.00049999,120]
[406600169,1771966546898,-1802.5088328,0.00049999,120]
[406600170,1771966546948,-1802.5088328,0.00049999,120]
[406600171,1771966546997,-500.0,0.00049999,120]
[406600172,1771966547046,-1802.5088328,0.00049999,120]
[406600173,1771966547094,-1802.5088328,0.00049999,120]
[406600174,1771966547143,-500.0,0.00049999,120]
[406600175,1771966547188,-1802.5088328,0.00049999,120]
[406600176,1771966547235,-1802.5088328,0.00049999,120]
[406600177,1771966547283,-1802.5088328,0.00049999,120]
[406600178,1771966547329,-1802.5088328,0.00049999,120]
[406600179,1771966547523,-1802.5088328,0.00049999,120]
[406600180,1771966547573,-1802.5088328,0.00049999,120]
[406600181,1771966547622,-1802.5088328,0.00049999,120]
[406600182,1771966547670,-1802.5088328,0.00049999,120]
[406600183,1771966547719,-1802.5088328,0.00049999,120]
[406600184,1771966547769,-1802.5088328,0.00049999,120]
[406600185,1771966547819,-1802.5088328,0.00049999,120]
[406600186,1771966547869,-1802.5088328,0.00049999,120]
[406600187,1771966547920,-1802.5088328,0.00049999,120]
[406600188,1771966547971,-1802.5088328,0.00049999,120]
[406600189,1771966548022,-1802.5088328,0.00049999,120]
[406600190,1771966548072,-1802.5088328,0.00049999,120]
[406600191,1771966548119,-1802.5088328,0.00049999,120]
[406600192,1771966548165,-1802.5088328,0.00049999,120]
[406600193,1771966548211,-1802.5088328,0.00049999,120]
[406600194,1771966548257,-1802.5088328,0.00049999,120]
[406600195,1771966548303,-1802.5088328,0.00049999,120]
[406600196,1771966548349,-1802.5088328,0.00049999,120]
[406600197,1771966548396,-1802.5088328,0.00049999,120]
[406600198,1771966548443,-1802.5088328,0.00049999,120]
[406600199,1771966548489,-1802.5088328,0.00049999,120]
[406600200,1771966548535,-1802.5088328,0.00049999,120]
[406600201,1771966548586,-1802.5088328,0.00049999,120]
[406600202,1771966548633,-1802.5088328,0.00049999,120]
[406600203,1771966548680,-1802.5088328,0.00049999,120]
[406600204,1771966548728,-1802.5088328,0.00049999,120]
[406600205,1771966548776,-1802.5088328,0.00049999,120]
[406600206,1771966548824,-1802.5088328,0.00049999,120]
[406600207,1771966548871,-1802.5088328,0.00049999,120]
[406600208,1771966548919,-1802.5088328,0.00049999,120]
[406600209,1771966548968,-1802.5088328,0.00049999,120]
[406600210,1771966549018,-1802.5088328,0.00049999,120]
[406600211,1771966549066,-1802.5088328,0.00049999,120]
[406600212,1771966549121,-1802.5088328,0.00049999,120]
[406600213,1771966549169,-1802.5088328,0.00049999,120]
[406600214,1771966549216,-1802.5088328,0.00049999,120]
[406600215,1771966549262,-1802.5088328,0.00049999,120]
[406600216,1771966549309,-1802.5088328,0.00049999,120]
[406600217,1771966549357,-1802.5088328,0.00049999,120]
[406600218,1771966549406,-1802.5088328,0.00049999,120]
[406600219,1771966549454,-1802.5088328,0.00049999,120]
[406600220,1771966549501,-1802.5088328,0.00049999,120]
[406600221,1771966549547,-1802.5088328,0.00049999,120]
[406600222,1771966549594,-1802.5088328,0.00049999,120]
[406600223,1771966549642,-1802.5088328,0.00049999,120]
[406600224,1771966549689,-1802.5088328,0.00049999,120]
[406600225,1771966549738,-1802.5088328,0.00049999,120]
[406600226,1771966549787,-1802.5088328,0.00049999,120]
[406600227,1771966549837,-1802.5088328,0.00049999,120]
[406600228,1771966549886,-1802.5088328,0.00049999,120]
[406600229,1771966549936,-1802.5088328,0.00049999,120]
[406600230,1771966549987,-1802.5088328,0.00049999,120]
[406600231,1771966550037,-1802.5088328,0.00049999,120]
[406600232,1771966550085,-1802.5088328,0.00049999,120]
[406600233,1771966550133,-1802.5088328,0.00049999,120]
[406600234,1771966550181,-1802.5088328,0.00049999,120]
[406600235,1771966550229,-1802.5088328,0.00049999,120]
[406600236,1771966550277,-1802.5088328,0.00049999,120]
[406600237,1771966550325,-50000.0,0.0005,90]
[406600238,1771966550370,-150.0,0.0005,40]
[406600239,1771966550413,-400.0,0.0005,120]
[406600240,1771966550457,-173.10554174,0.0005,120]
[406600241,1771966550501,-1386.3661545,0.0005,120]
[406600242,1771966550545,-1100.62653499,0.0005,120]
[406600243,1771966550590,-687.24317132,0.0005,120]
[406600244,1771966550634,-226.01127511,0.0005,120]
[406600245,1771966550678,-2059.44357368,0.0005,120]
[406600246,1771966550726,-500.0,0.0005,30]
[406600247,1771966550776,-200.0,0.0005,120]
[406600248,1771966550823,-160.70323503,0.0005,120]
[406600249,1771966550869,-2178.56,0.0005,120]
[406600250,1771966550918,-150.0,0.0005,120]
[406600251,1771966550966,-150.0,0.0005,120]
[406600252,1771966551016,-1297.0,0.0005,120]
[406600253,1771966551063,-1571.08272133,0.0005,120]
[406600254,1771966551108,-1000.0,0.0005,120]
[406600255,1771966551153,-250.0,0.0005,90]
[406600256,1771966551200,-209.29788711,0.0005,120]
[406600257,1771966551251,-2287.21426517,0.0005,120]
[406600258,1771966551297,-2615.93313976,0.0005,120]
[406600259,1771966551341,-163.41055408,0.0005,120]
[406600260,1771966551383,-4778.0,0.0005,120]
[406600261,1771966551426,-9179.83939491,0.0005,120]
[406600262,1771966551468,-477.37450548,0.0005,120]
[406600263,1771966551514,-11094.08298302,0.0005,120]
[406600264,1771966551560,-3056.09251777,0.0005,120]
[406600265,1771966551605,-3581.57123524,0.0005,45]
[406600266,1771966551649,-2171.87582903,0.0005,30]
[406600267,1771966551840,-1710.64424731,0.0005,120]
[406600268,1771966551890,-2598.51845593,0.0005,30]
[406600269,1771966551942,-2896.03827077,0.0005,120]
[406600270,1771966551994,-3957.67223357,0.0005,120]
[406600271,1771966552045,-1961.27909697,0.0005,30]
[406600272,1771966552093,-1375.66002408,0.0005,120]
[406600273,1771966552140,-2016.68153156,0.0005,120]
[406600274,1771966552187,-254.67299243,0.0005,120]
[406600275,1771966552236,-330.52310641,0.0005,30]
[406600276,1771966552284,-30420.96849973,0.0005,120]
[406600277,1771966552330,-8923.92,0.0005,120]
[406600278,1771966552376,-472485.94341477,0.0005,120]
[406600279,1771966552421,-41154.93,0.0005,120]
[406600280,1771966552466,-8230.99,0.0005,120]
[406600281,1771966552521,-1000000.0,0.0005,40]
[406600282,1771966552569,-1000000.0,0.0005,40]
[406600283,1771966552621,-1000000.0,0.0005,42]
[406600284,1771966552672,-1000000.0,0.0005,44]
[406600285,1771966552726,-1000000.0,0.0005,44]
[406600286,1771966552782,-1000000.0,0.0005,45]
[406600287,1771966552836,-1000000.0,0.0005,45]
[406600288,1771966552891,-212247.32305869,0.0005,45]
[406600289,1771966561043,-150.0,0.00045205,120]
[406600290,1771966561095,-1091.97767,0.00045556,120]
[406600291,1771966561145,-1091.97767,0.00045556,120]
[406600292,1771966561196,-1091.97767,0.00045556,120]
[406600293,1771966561253,-300.0,0.00046027,120]
[406600294,1771966561300,-450.0,0.00046849,120]
[406600295,1771966561348,-600.0,0.00047671,120]
[406600296,1771966561397,-750.0,0.00048493,120]
[406600297,1771966561445,-900.0,0.00049315,120]
[406600298,1771966561496,-1091.977666,0.000495,120]
[406600299,1771966561552,-787752.67694131,0.0005,45]
[406600300,1771966561606,-1000000.0,0.0005,45]
[406600301,1771966561658,-1000000.0,0.0005,48]
[406600302,1771966561710,-1000000.0,0.0005,48]
[406600303,1771966561763,-1000000.0,0.0005,48]
[406600304,1771966561818,-1000000.0,0.0005,50]
[406600305,1771966561874,-1000000.0,0.0005,50]
[406600306,1771966561929,-1000000.0,0.0005,50]
[406600307,1771966561984,-1000000.0,0.0005,50]
[406600308,1771966562038,-204729.41238269,0.0005,52]
[406600309,1771966566745,-7930.07,0.00045205,120]
[406600310,1771966566795,-7930.07,0.00045205,120]
[406600311,1771966566845,-500.0,0.00045205,120]
[406600312,1771966566894,-7930.07,0.00045205,120]
[406600313,1771966566943,-500.0,0.00045205,120]
[406600314,1771966566991,-7930.07,0.00045205,120]
[406600315,1771966567039,-500.0,0.00045205,120]
[406600316,1771966567090,-7930.07,0.00045205,120]
[406600317,1771966567138,-500.0,0.00045205,120]
[406600318,1771966567187,-7930.07,0.00045205,120]
[406600319,1771966567237,-500.0,0.00045205,120]
[406600320,1771966567290,-7930.07,0.00045205,120]
[406600321,1771966567341,-500.0,0.00045205,120]
[406600322,1771966567388,-7930.07,0.00045205,120]
[406600323,1771966567436,-500.0,0.00045205,120]
[406600324,1771966567484,-7930.07,0.00045205,120]
[406600325,1771966567536,-500.0,0.00045205,120]
[406600326,1771966567585,-7930.07,0.00045205,120]
[406600327,1771966567633,-500.0,0.00045205,120]
[406600328,1771966567682,-7930.07,0.00045205,120]
[406600329,1771966567734,-500.0,0.00045205,120]
[406600330,1771966567785,-7930.07,0.00045205,120]
[406600331,1771966567839,-7930.07,0.00045205,120]
[406600332,1771966567893,-178.03169235,0.00045205,120]
[406600333,1771966567942,-7930.07,0.00045205,120]
[406600334,1771966568229,-7930.07,0.00045205,120]
[406600335,1771966568286,-7930.07,0.00045205,120]
[406600336,1771966568338,-7930.07,0.00045205,120]
[406600337,1771966568404,-795270.58761731,0.0005,52]
[406600338,1771966568458,-1000000.0,0.0005,54]
[406600339,1771966568511,-1000000.0,0.0005,55]
[406600340,1771966568563,-1000000.0,0.0005,55]
[406600341,1771966568618,-1000000.0,0.0005,57]
[406600342,1771966568670,-1000000.0,0.0005,57]
[406600343,1771966568727,-1000000.0,0.0005,57]
[406600344,1771966568786,-1000000.0,0.0005,40]
[406600345,1771966568842,-1000000.0,0.0005,40]
[406600346,1771966568899,-64740.19069034,0.0005,40]
[406600347,1771966572470,-7930.07,0.00045205,120]
[406600348,1771966572519,-7930.07,0.00045205,120]
[406600349,1771966572566,-7930.07,0.00045205,120]
[406600350,1771966572612,-7930.07,0.00045205,120]
[406600351,1771966572659,-7930.07,0.00045205,120]
[406600352,1771966572707,-500.0,0.00045205,120]
[406600353,1771966572757,-7930.07,0.00045205,120]
[406600354,1771966572806,-241.83734436,0.00045205,120]
[406600355,1771966572853,-7930.25674565,0.00045205,120]
[406600356,1771966572915,-500.0,0.00049999,120]
[406600357,1771966572966,-151.0,0.00049999,120]
[406600358,1771966573017,-156.587,0.00049999,120]
[406600359,1771966573078,-935259.80930966,0.0005,40]
[406600360,1771966573136,-1000000.0,0.0005,53]
[406600361,1771966573205,-1000000.0,0.0005,53]
[406600362,1771966573263,-1000000.0,0.0005,53]
[406600363,1771966573318,-1000000.0,0.0005,53]
[406600364,1771966573371,-1000000.0,0.0005,58]
[406600365,1771966573421,-1000000.0,0.0005,58]
[406600366,1771966573474,-1000000.0,0.0005,59]
[406600367,1771966573528,-1000000.0,0.0005,59]
[406600368,1771966573579,-7680.08960033,0.0005,41]
[406600369,1771966584109,-500.0,0.00045205,120]
[406600370,1771966584161,-500.0,0.00045205,120]
[406600371,1771966584218,-618.58358465,0.00045205,120]
[406600372,1771966584271,-530.34600559,0.00045205,120]
[406600373,1771966584551,-2449.67,0.00045205,120]
[406600374,1771966584606,-2449.67,0.00045205,120]
[406600375,1771966584654,-2449.67,0.00045205,120]
[406600376,1771966584704,-2449.67,0.00045205,120]
[406600377,1771966584759,-2449.67,0.00045205,120]
[406600378,1771966584810,-2449.67,0.00045205,120]
[406600379,1771966584861,-2449.67,0.00045205,120]
[406600380,1771966584914,-2449.67,0.00045205,120]
[406600381,1771966584966,-2449.67,0.00045205,120]
[406600382,1771966585017,-2449.67,0.00045205,120]
[406600383,1771966585070,-2449.67,0.00045205,120]
[406600384,1771966585121,-2449.67,0.00045205,120]
[406600385,1771966585170,-2449.67,0.00045205,120]
[406600386,1771966585218,-2449.67,0.00045205,120]
[406600387,1771966585268,-2449.67,0.00045205,120]
[406600388,1771966585321,-2449.67,0.00045205,120]
[406600389,1771966585372,-2449.67,0.00045205,120]
[406600390,1771966585419,-2449.67,0.00045205,120]
[406600391,1771966585466,-2449.67,0.00045205,120]
[406600392,1771966585534,-151.0,0.00045556,60]
[406600393,1771966585587,-151.0,0.00045556,60]
[406600394,1771966585652,-151.0,0.00049999,120]
[406600395,1771966585703,-250.12050351,0.00049999,120]
[406600396,1771966585756,-151.0,0.00049999,120]
[406600397,1771966585812,-500.0,0.00049999,120]
[406600398,1771966585864,-151.0,0.00049999,120]
[406600399,1771966585920,-518.5,0.00049999,120]
[406600400,1771966585973,-151.0,0.00049999,120]
[406600401,1771966586028,-537.6845,0.00049999,120]
[406600402,1771966586080,-151.0,0.00049999,120]
[406600403,1771966586134,-557.5788265,0.00049999,120]
[406600404,1771966586184,-151.0,0.00049999,120]
[406600405,1771966586238,-578.20924308,0.00049999,120]
[406600406,1771966586291,-151.0,0.00049999,120]
[406600407,1771966586342,-500.0,0.00049999,120]
[406600408,1771966586395,-599.60298507,0.00049999,120]
[406600409,1771966586444,-151.0,0.00049999,120]
[406600410,1771966586494,-500.0,0.00049999,120]
[406600411,1771966586542,-621.78829552,0.00049999,120]
[406600412,1771966586589,-151.0,0.00049999,120]
[406600413,1771966586640,-500.0,0.00049999,120]
[406600414,1771966586692,-644.79446246,0.00049999,120]
[406600415,1771966586742,-151.0,0.00049999,120]
[406600416,1771966586793,-500.0,0.00049999,120]
[406600417,1771966586847,-668.65185757,0.00049999,120]
[406600418,1771966586900,-500.0,0.00049999,120]
[406600419,1771966586954,-151.0,0.00049999,120]
[406600420,1771966587009,-500.0,0.00049999,120]
[406600421,1771966587062,-500.0,0.00049999,120]
[406600422,1771966587118,-693.3919763,0.00049999,120]
[406600423,1771966587171,-151.0,0.00049999,120]
[406600424,1771966587224,-500.0,0.00049999,120]
[406600425,1771966587276,-500.0,0.00049999,120]
[406600426,1771966587331,-719.04747942,0.00049999,120]
[406600427,1771966587383,-500.0,0.00049999,120]
[406600428,1771966587437,-151.0,0.00049999,120]
[406600429,1771966587491,-500.0,0.00049999,120]
[406600430,1771966587543,-745.65223616,0.00049999,120]
[406600431,1771966587594,-500.0,0.00049999,120]
[406600432,1771966587643,-151.0,0.00049999,120]
[406600433,1771966587692,-500.0,0.00049999,120]
[406600434,1771966587746,-773.2413689,0.00049999,120]
[406600435,1771966587797,-500.0,0.00049999,120]
[406600436,1771966587848,-151.0,0.00049999,120]
[406600437,1771966587898,-500.0,0.00049999,120]
[406600438,1771966587951,-801.85129955,0.00049999,120]
[406600439,1771966588002,-500.0,0.00049999,120]
[406600440,1771966588054,-151.0,0.00049999,120]
[406600441,1771966588107,-500.0,0.00049999,120]
[406600442,1771966588161,-831.51979763,0.00049999,120]
[406600443,1771966588209,-151.0,0.00049999,120]
[406600444,1771966588257,-500.0,0.00049999,120]
[406600445,1771966588308,-862.28603014,0.00049999,120]
[406600446,1771966588355,-592.26070942,0.00049999,120]
[406600447,1771966588403,-151.0,0.00049999,120]
[406600448,1771966588449,-500.0,0.00049999,120]
[406600449,1771966588498,-894.19061326,0.00049999,120]
[406600450,1771966588544,-151.0,0.00049999,120]
[406600451,1771966588590,-500.0,0.00049999,120]
[406600452,1771966588637,-927.27566595,0.00049999,120]
[406600453,1771966588688,-992319.91039967,0.0005,41]
[406600454,1771966588739,-1000000.0,0.0005,41]
[406600455,1771966588792,-1000000.0,0.0005,51]
[406600456,1771966588841,-500.0,0.0005,120]
[406600457,1771966588889,-1646.19,0.0005,120]
[406600458,1771966588938,-6250.0,0.0005,120]
[406600459,1771966589154,-9877.18,0.0005,120]
[406600460,1771966589215,-329.24,0.0005,120]
[406600461,1771966589268,-2370.53,0.0005,120]
[406600462,1771966589322,-474.1,0.0005,120]
[406600463,1771966589370,-10360.0,0.0005,120]
[406600464,1771966589418,-4379.96067036,0.0005,30]
[406600465,1771966589465,-600.0,0.0005,120]
[406600466,1771966589512,-600.0,0.0005,120]
[406600467,1771966589558,-600.0,0.0005,120]
[406600468,1771966589607,-150.0,0.0005,120]
[406600469,1771966589653,-1174.71480961,0.0005,120]
[406600470,1771966589702,-154.0,0.0005,120]
[406600471,1771966589750,-173.87087054,0.0005,30]
[406600472,1771966589796,-6045.43336854,0.0005,120]
[406600473,1771966589844,-1009.23,0.00050064,120]
[406600474,1771966589890,-273.22,0.000501,30]
[406600475,1771966589936,-341.96864702,0.0005011,120]
[406600476,1771966589985,-1050.0,0.00050136,120]
[406600477,1771966590033,-1500000.0,0.000504,30]
[406600478,1771966590083,-454.61,0.000504,30]
[406600479,1771966590130,-857.0,0.00050424,120]
[406600480,1771966590179,-1009.23,0.00050472,120]
[406600481,1771966590228,-755.10692271,0.00050472,30]
[406600482,1771966590276,-247.0,0.00050562,90]
[406600483,1771966590323,-1362.78659317,0.000506,120]
[406600484,1771966590372,-152.0,0.000507,120]
[406600485,1771966590419,-500.0,0.00050767,68]
[406600486,1771966590466,-1009.23,0.0005088,120]
[406600487,1771966590513,-159.46551245,0.00050882,30]
[406600488,1771966590555,-633.93576628,0.000509,120]
[406600489,1771966590602,-5691.71053921,0.000509,120]
[406600490,1771966590646,-4582.64106997,0.00050936,120]
[406600491,1771966590692,-1261.51645103,0.00050958,120]
[406600492,1771966590737,-213.83570189,0.00050967,120]
[406600493,1771966590783,-212.35084953,0.00050967,120]
[406600494,1771966590832,-212.35084953,0.00050967,120]
[406600495,1771966590879,-212.84580031,0.00050967,120]
[406600496,1771966590928,-326.91705713,0.00051,120]
[406600497,1771966590978,-100021.0,0.00051,120]
[406600498,1771966591025,-150.0,0.00051,120]
[406600499,1771966591074,-1500.0,0.00051,120]
[406600500,1771966591120,-150.0,0.00051,120]
[406600501,1771966591165,-1000.0,0.00051,120]
[406600502,1771966591210,-3400.0,0.00051,33]
[406600503,1771966591254,-316.56470116,0.00051,60]
[406600504,1771966591303,-3902.570159,0.00051,120]
[406600505,1771966591355,-1810.0,0.00051,120]
[406600506,1771966591407,-250000.0,0.00051,120]
[406600507,1771966591454,-262.4,0.00051,40]
[406600508,1771966591500,-1459.86765702,0.00051,120]
[406600509,1771966591546,-3179.0,0.00051,120]
[406600510,1771966591594,-14185.81112588,0.00051,120]
[406600511,1771966591642,-180.0,0.00051,120]
[406600512,1771966591690,-499999.0,0.00051,120]
[406600513,1771966591739,-837.97473171,0.00051,120]
[406600514,1771966591786,-5405.0,0.00051007,120]
[406600515,1771966591836,-1129.27473156,0.00051234,120]
[406600516,1771966591884,-818.80238814,0.0005124,30]
[406600517,1771966591930,-10000.0,0.0005125,120]
[406600518,1771966591977,-1009.23,0.00051287,120]
[406600519,1771966592024,-300.0,0.000514,120]
[406600520,1771966592070,-154.0,0.000514,120]
[406600521,1771966592116,-5000.0,0.000515,92]
[406600522,1771966592162,-152.0,0.000515,120]
[406600523,1771966592211,-3457962.1151859,0.000515,120]
[406600524,1771966607804,-1143.95,0.0004,30]
[406600525,1771966607865,-151.0,0.00041096,31]
[406600526,1771966607918,-1143.95,0.000425,30]
[406600527,1771966607971,-1143.95,0.000442,30]
[406600528,1771966608026,-2449.67,0.00045205,120]
[406600529,1771966608073,-2449.67,0.00045205,120]
[406600530,1771966608124,-2449.67,0.00045205,120]
[406600531,1771966608173,-2449.67,0.00045205,120]
[406600532,1771966608222,-2449.88453285,0.00045205,120]
[406600533,1771966608270,-500.0,0.00045205,120]
[406600534,1771966608318,-537.59235317,0.00045205,120]
[406600535,1771966608365,-245.71647916,0.00045205,120]
[406600536,1771966608408,-500.0,0.00045205,120]
[406600537,1771966608453,-500.0,0.00045205,120]
[406600538,1771966608500,-500.0,0.00045205,120]
[406600539,1771966608553,-500.0,0.00045205,120]
[406600540,1771966608604,-500.0,0.00045205,120]
[406600541,1771966608653,-500.0,0.00045205,120]
[406600542,1771966608701,-500.0,0.00045205,120]
[406600543,1771966608750,-500.0,0.00045205,120]
[406600544,1771966608798,-500.0,0.00045205,120]
[406600545,1771966608846,-500.0,0.00045205,120]
[406600546,1771966608894,-500.0,0.00045205,120]
[406600547,1771966608944,-500.0,0.00045205,120]
[406600548,1771966608991,-500.0,0.00045205,120]
[406600549,1771966609037,-500.0,0.00045205,120]
[406600550,1771966609083,-500.0,0.00045205,120]
[406600551,1771966609126,-500.0,0.00045205,120]
[406600552,1771966609169,-500.0,0.00045205,120]
[406600553,1771966609212,-500.0,0.00045205,120]
[406600554,1771966609255,-500.0,0.00045205,120]
[406600555,1771966609298,-500.0,0.00045205,120]
[406600556,1771966609347,-500.0,0.00045205,120]
[406600557,1771966609394,-500.0,0.00045205,120]
[406600558,1771966609445,-612.96783464,0.00045205,120]
[406600559,1771966609490,-500.0,0.00045205,120]
[406600560,1771966609537,-500.0,0.00045205,120]
[406600561,1771966609581,-500.0,0.00045205,120]
[406600562,1771966609625,-500.0,0.00045205,120]
[406600563,1771966609672,-500.0,0.00045205,120]
[406600564,1771966609724,-500.0,0.00045205,120]
[406600565,1771966609775,-500.0,0.00045205,120]
[406600566,1771966609826,-500.0,0.00045205,120]
[406600567,1771966609876,-500.0,0.00045205,120]
[406600568,1771966609924,-500.0,0.00045205,120]
[406600569,1771966609971,-500.0,0.00045205,120]
[406600570,1771966610017,-500.0,0.00045205,120]
[406600571,1771966610062,-500.0,0.00045205,120]
[406600572,1771966610113,-500.0,0.00045205,120]
[406600573,1771966610165,-500.0,0.00045205,120]
[406600574,1771966610208,-500.0,0.00045205,120]
[406600575,1771966610253,-500.0,0.00045205,120]
[406600576,1771966610297,-500.0,0.00045205,120]
[406600577,1771966610343,-500.0,0.00045205,120]
[406600578,1771966610388,-500.0,0.00045205,120]
[406600579,1771966610431,-389.38736164,0.00045205,120]
[406600580,1771966610479,-15688.03543318,0.00045556,56]
[406600581,1771966610527,-151.0,0.00045556,120]
[406600582,1771966610571,-151.0,0.00045556,120]
[406600583,1771966610616,-167.200014,0.00045556,120]
[406600584,1771966610674,-1143.95,0.00046,30]
[406600585,1771966610728,-151.0,0.00049999,120]
[406600586,1771966610776,-500.0,0.00049999,120]
[406600587,1771966610826,-961.58486559,0.00049999,120]
[406600588,1771966610872,-500.0,0.00049999,120]
[406600589,1771966610922,-997.16350561,0.00049999,120]
[406600590,1771966610971,-500.0,0.00049999,120]
[406600591,1771966611021,-500.0,0.00049999,120]
[406600592,1771966611071,-500.0,0.00049999,120]
[406600593,1771966611122,-500.0,0.00049999,120]
[406600594,1771966611168,-500.0,0.00049999,120]
[406600595,1771966611213,-500.0,0.00049999,120]
[406600596,1771966611259,-500.0,0.00049999,120]
[406600597,1771966611302,-500.0,0.00049999,120]
[406600598,1771966611347,-500.0,0.00049999,120]
[406600599,1771966611391,-500.0,0.00049999,120]
[406600600,1771966611435,-500.0,0.00049999,120]
[406600601,1771966611489,-500.0,0.00049999,120]
[406600602,1771966611539,-500.0,0.00049999,120]
[406600603,1771966611587,-500.0,0.00049999,120]
[406600604,1771966611634,-500.0,0.00049999,120]
[406600605,1771966611678,-500.0,0.00049999,120]
[406600606,1771966611728,-500.0,0.00049999,120]
[406600607,1771966611779,-500.0,0.00049999,120]
[406600608,1771966611831,-500.0,0.00049999,120]
[406600609,1771966611881,-500.0,0.00049999,120]
[406600610,1771966611934,-500.0,0.00049999,120]
[406600611,1771966611987,-500.0,0.00049999,120]
[406600612,1771966612040,-180.72492375,0.00049999,120]
[406600613,1771966612098,-500.0,0.00049999,120]
[406600614,1771966612150,-500.0,0.00049999,120]
[406600615,1771966612202,-500.0,0.00049999,120]
[406600616,1771966612250,-500.0,0.00049999,120]
[406600617,1771966612297,-500.0,0.00049999,120]
[406600618,1771966612351,-500.0,0.00049999,120]
[406600619,1771966612403,-500.0,0.00049999,120]
[406600620,1771966612452,-500.0,0.00049999,120]
[406600621,1771966612502,-500.0,0.00049999,120]
[406600622,1771966612548,-500.0,0.00049999,120]
[406600623,1771966612597,-250.0,0.00049999,120]
[406600624,1771966612646,-250.0,0.00049999,120]
[406600625,1771966612693,-250.0,0.00049999,120]
[406600626,1771966612743,-250.0,0.00049999,120]
[406600627,1771966612793,-250.0,0.00049999,120]
[406600628,1771966612843,-217.3878906,0.00049999,120]
[406600629,1771966612896,-1542037.8848141,0.000515,120]
[406600630,1771966612949,-5000000.0,0.000515,120]
[406600631,1771966613002,-2380785.98999171,0.000515,120]
[406600632,1771966617031,-2619214.01000829,0.000515,120]
[406600633,1771966617089,-5000000.0,0.000515,120]
[406600634,1771966617144,-1380785.98999171,0.000515,120]
[406600635,1771966627507,-500.0,0.00051499,120]
[406600636,1771966627574,-3619214.01000829,0.000515,120]
[406600637,1771966627638,-54600.0,0.000515,35]
[406600638,1771966627706,-295.17,0.00051507,120]
[406600639,1771966627776,-218.65978951,0.00051526,30]
[406600640,1771966627856,-150.0,0.00051682,120]
[406600641,1771966627932,-1009.23,0.00051695,120]
[406600642,1771966628005,-13068.2,0.00051778,30]
[406600643,1771966628082,-154.06392121,0.00051835,30]
[406600644,1771966628162,-5000.0,0.000519,120]
[406600645,1771966628240,-2225.80456927,0.000519,30]
[406600646,1771966628316,-3548.9,0.000519,120]
[406600647,1771966628392,-166.17,0.000519,30]
[406600648,1771966628469,-15732.47388894,0.00051914,120]
[406600649,1771966628547,-2337.0,0.00051937,120]
[406600650,1771966628623,-700.0,0.0005195,120]
[406600651,1771966628692,-563.42620004,0.00051954,90]
[406600652,1771966628764,-1174.0,0.0005198,110]
[406600653,1771966628831,-305.51431716,0.00052,30]